fUSD/lending_fUSD_20250806
["ID","MTS","AMOUNT","RATE_DAILY","PERIOD"]
[377685803,1754490640783,-2269.73,0.00038356,14]
[377685804,1754490640793,-185.08568638,0.00038356,14]
[377685805,1754490640803,-400.0,0.00038356,14]
[377685806,1754490640814,-2967.53,0.00038356,14]
[377685807,1754490640824,-2837.17,0.00038356,14]
[377685808,1754490640834,-1063.86,0.00038356,14]
[377685809,1754490640844,-400.0,0.00038356,14]
[377685810,1754490640854,-2018.59,0.00038356,14]
[377685811,1754490640864,-1162.3,0.00038356,14]
[377685812,1754490640873,-3146.67,0.00038356,14]
[377685813,1754490640883,-400.0,0.00038356,14]
[377685814,1754490640893,-400.0,0.00038356,14]
[377685815,1754490640903,-400.0,0.00038356,14]
[377685816,1754490640913,-848.67,0.00038356,14]
[377685817,1754490640923,-400.0,0.00038356,14]
[377685818,1754490640933,-2478.89,0.00038356,14]
[377685819,1754490640942,-4669.72,0.00038356,14]
[377685820,1754490640952,-800.12,0.00038356,14]
[377685821,1754490640963,-400.0,0.00038356,14]
[377685822,1754490640972,-2544.24,0.00038356,14]
[377685823,1754490640982,-2439.33,0.00038356,14]
[377685824,1754490640992,-400.0,0.00038356,14]
[377685825,1754490641003,-400.0,0.00038356,14]
[377685826,1754490641013,-869.19,0.00038356,14]
[377685827,1754490641023,-400.0,0.00038356,14]
[377685828,1754490641032,-2586.09,0.00038356,14]
[377685829,1754490641043,-2607.99,0.00038356,14]
[377685830,1754490641055,-2200.77,0.00038356,14]
[377685831,1754490641065,-1727.44,0.00038356,14]
[377685832,1754490641075,-400.0,0.00038356,14]
[377685833,1754490641085,-2082.09,0.00038356,14]
[377685834,1754490641095,-1905.8,0.00038356,14]
[377685835,1754490641105,-582.16,0.00038356,14]
[377685836,1754490641115,-3223.75,0.00038356,14]
[377685837,1754490641125,-1097.05,0.00038356,14]
[377685838,1754490641135,-983.33,0.00038356,14]
[377685839,1754490641145,-400.0,0.00038356,14]
[377685840,1754490641154,-1694.85,0.00038356,14]
[377685841,1754490641164,-400.0,0.00038356,14]
[377685842,1754490641174,-954.27326523,0.00038356,14]
[377685844,1754490641980,-1079.02673477,0.00038356,14]
[377685845,1754490641990,-1926.86,0.00038356,14]
[377685846,1754490641999,-2154.22,0.00038356,14]
[377685847,1754490642009,-2324.79,0.00038356,14]
[377685848,1754490642018,-400.0,0.00038356,14]
[377685849,1754490642028,-3351.01,0.00038356,14]
[377685850,1754490642037,-1795.84,0.00038356,14]
[377685851,1754490642047,-400.0,0.00038356,14]
[377685852,1754490642056,-1507.39,0.00038356,14]
[377685853,1754490642065,-1022.03,0.00038356,14]
[377685854,1754490642074,-2538.4,0.00038356,14]
[377685855,1754490642084,-400.0,0.00038356,14]
[377685856,1754490642093,-400.0,0.00038356,14]
[377685857,1754490642102,-2644.54,0.00038356,14]
[377685858,1754490642111,-3179.13,0.00038356,14]
[377685859,1754490642121,-400.71983141,0.00038356,14]
[377685860,1754490642130,-1954.37,0.00038356,14]
[377685861,1754490642139,-1048.21,0.00038356,14]
[377685862,1754490642148,-1376.9,0.00038356,14]
[377685863,1754490642157,-2001.17,0.00038356,14]
[377685864,1754490642166,-1902.8,0.00038356,14]
[377685865,1754490642175,-1280.17,0.00038356,14]
[377685866,1754490642187,-1715.87,0.00038356,14]
[377685867,1754490642197,-450.99,0.00038356,14]
[377685868,1754490642207,-1785.87,0.00038356,14]
[377685869,1754490642216,-400.0,0.00038356,14]
[377685870,1754490642226,-400.0,0.00038356,14]
[377685871,1754490642235,-1265.45,0.00038356,14]
[377685872,1754490642245,-2858.31,0.00038356,14]
[377685873,1754490642254,-2361.8,0.00038356,14]
[377685874,1754490642264,-400.0,0.00038356,14]
[377685875,1754490642273,-2035.7,0.00038356,14]
[377685876,1754490642283,-2010.42,0.00038356,14]
[377685877,1754490642293,-3190.39,0.00038356,14]
[377685878,1754490642303,-3005.6,0.00038356,14]
[377685879,1754490642313,-500.66,0.00038356,14]
[377685880,1754490642322,-400.0,0.00038356,14]
[377685881,1754490642331,-400.0,0.00038356,14]
[377685882,1754490642340,-2879.83,0.00038356,14]
[377685883,1754490642350,-400.0,0.00038356,14]
[377685884,1754490642360,-400.0,0.00038356,14]
[377685885,1754490642371,-400.0,0.00038356,14]
[377685886,1754490642381,-400.0,0.00038356,14]
[377685887,1754490642390,-2705.61,0.00038356,14]
[377685888,1754490642399,-3008.97,0.00038356,14]
[377685889,1754490642409,-12710.04,0.00038356,14]
[377685890,1754490642418,-1856.92,0.00038356,14]
[377685891,1754490642428,-400.0,0.00038356,14]
[377685892,1754490642437,-3207.87,0.00038356,14]
[377685893,1754490642448,-1918.15,0.00038356,14]
[377685894,1754490642459,-400.0,0.00038356,14]
[377685895,1754490642468,-2865.75,0.00038356,14]
[377685896,1754490642479,-2870.61,0.00038356,14]
[377685897,1754490642488,-400.0,0.00038356,14]
[377685898,1754490642497,-1634.17,0.00038356,14]
[377685899,1754490642507,-3679.16,0.00038356,14]
[377685900,1754490642517,-456.0,0.00038356,14]
[377685901,1754490642527,-2132.85,0.00038356,14]
[377685902,1754490642536,-3845.94,0.00038356,14]
[377685903,1754490642546,-400.0,0.00038356,14]
[377685904,1754490642557,-400.0,0.00038356,14]
[377685905,1754490642567,-547.37,0.00038356,14]
[377685907,1754490642576,-400.0,0.00038356,14]
[377685908,1754490642590,-1387.69,0.00038356,14]
[377685910,1754490642600,-1692.5,0.00038356,14]
[377685911,1754490642609,-400.0,0.00038356,14]
[377685913,1754490642618,-1496.81,0.00038356,14]
[377685914,1754490642628,-2141.43,0.00038356,14]
[377685915,1754490642638,-2521.24,0.00038356,14]
[377685916,1754490642647,-400.0,0.00038356,14]
[377685917,1754490642656,-1016.12,0.00038356,14]
[377685918,1754490642666,-1732.69,0.00038356,14]
[377685919,1754490642676,-1030.23,0.00038356,14]
[377685920,1754490642685,-400.0,0.00038356,14]
[377685921,1754490642694,-3412.77,0.00038356,14]
[377685922,1754490642703,-464.64,0.00038356,14]
[377685923,1754490642713,-2226.16,0.00038356,14]
[377685925,1754490642722,-1673.94,0.00038356,14]
[377685927,1754490642733,-1085.12,0.00038356,14]
[377685929,1754490642742,-400.0,0.00038356,14]
[377685930,1754490642752,-3549.1,0.00038356,14]
[377685931,1754490642761,-400.0,0.00038356,14]
[377685932,1754490642769,-2151.2,0.00038356,14]
[377685933,1754490642777,-2368.26,0.00038356,14]
[377685934,1754490642786,-647.17,0.00038356,14]
[377685935,1754490642795,-1154.36,0.00038356,14]
[377685936,1754490642803,-2135.98,0.00038356,14]
[377685937,1754490642814,-2639.18,0.00038356,14]
[377685938,1754490642822,-739.16,0.00038356,14]
[377685939,1754490642831,-791.92,0.00038356,14]
[377685940,1754490642841,-757.92,0.00038356,14]
[377685941,1754490642850,-1832.12,0.00038356,14]
[377685942,1754490642859,-400.0,0.00038356,14]
[377685943,1754490642869,-157.08,0.00038356,2]
[377685944,1754490642877,-666735.48,0.0003836,120]
[377685945,1754490642885,-548.5,0.00038465,30]
[377685946,1754490642893,-500.0,0.0003862,14]
[377685947,1754490642902,-1407.62,0.0003863,14]
[377685948,1754490642912,-400.0,0.0003863,14]
[377685949,1754490642921,-400.0,0.0003863,14]
[377685950,1754490642931,-400.0,0.0003863,14]
[377685951,1754490642940,-221.86411123,0.0003863,14]
[377685952,1754490642950,-400.0,0.0003863,14]
[377685953,1754490642959,-400.0,0.0003863,14]
[377685954,1754490642969,-400.0,0.0003863,14]
[377685955,1754490642979,-153.31832254,0.0003863,14]
[377685978,1754490644601,-1888.0,0.00028495,3]
[377685979,1754490644611,-3776.0,0.00030735,3]
[377685980,1754490644620,-64.59890878,0.00038355,3]
[377685981,1754490644644,-342.96293396,0.00038355,3]
[377685982,1754490645057,-809.0,0.0003643,2]
[377685983,1754490645067,-332.45,0.00038355,3]
[377685984,1754490645079,-1147.98815726,0.00038355,3]
[377685985,1754490645089,-1610.06,0.00038356,14]
[377685986,1754490645098,-322.01568845,0.00038356,14]
[377685989,1754490645998,-77.98431155,0.00038356,14]
[377685990,1754490646009,-2274.29,0.00038356,14]
[377685991,1754490646018,-400.0,0.00038356,14]
[377685992,1754490646028,-246.68167746,0.0003863,14]
[377685993,1754490646038,-400.0,0.0003863,14]
[377685994,1754490646048,-854.85,0.0003863,14]
[377685995,1754490646057,-452.13,0.0003863,14]
[377685996,1754490646068,-400.0,0.0003863,14]
[377685997,1754490646077,-400.0,0.0003863,14]
[377685998,1754490646087,-400.0,0.0003863,14]
[377685999,1754490646096,-865.3,0.0003863,14]
[377686000,1754490646105,-400.0,0.0003863,14]
[377686001,1754490646114,-400.0,0.0003863,14]
[377686002,1754490646124,-496.52,0.0003863,14]
[377686003,1754490646133,-1237.76,0.0003863,14]
[377686004,1754490646142,-400.0,0.0003863,14]
[377686005,1754490646152,-1606.17,0.0003863,14]
[377686006,1754490646162,-1093.37,0.0003863,14]
[377686007,1754490646171,-400.0,0.0003863,14]
[377686008,1754490646180,-400.0,0.0003863,14]
[377686009,1754490646191,-523.53,0.0003863,14]
[377686010,1754490646200,-400.0,0.0003863,14]
[377686011,1754490646210,-438.94,0.0003863,14]
[377686012,1754490646219,-917.47,0.0003863,14]
[377686013,1754490646229,-400.0,0.0003863,14]
[377686014,1754490646238,-400.0,0.0003863,14]
[377686015,1754490646248,-400.0,0.0003863,14]
[377686016,1754490646257,-542.13,0.0003863,14]
[377686017,1754490646267,-400.0,0.0003863,14]
[377686018,1754490646277,-1694.58,0.0003863,14]
[377686020,1754490646286,-400.0,0.0003863,14]
[377686022,1754490646295,-400.0,0.0003863,14]
[377686024,1754490646304,-400.0,0.0003863,14]
[377686026,1754490646315,-900.42,0.0003863,14]
[377686028,1754490646325,-400.0,0.0003863,14]
[377686030,1754490646335,-862.84,0.0003863,14]
[377686032,1754490646344,-400.0,0.0003863,14]
[377686033,1754490646355,-400.0,0.0003863,14]
[377686034,1754490646365,-400.0,0.0003863,14]
[377686035,1754490646374,-515.01451102,0.0003863,14]
[377686036,1754490646383,-1857.47,0.0003863,14]
[377686037,1754490646392,-400.0,0.0003863,14]
[377686038,1754490646404,-400.0,0.0003863,14]
[377686039,1754490646414,-1083.63,0.0003863,14]
[377686040,1754490646423,-400.0,0.0003863,14]
[377686041,1754490646434,-1221.98,0.0003863,14]
[377686042,1754490646444,-400.0,0.0003863,14]
[377686044,1754490646453,-400.0,0.0003863,14]
[377686046,1754490646463,-449.3,0.0003863,14]
[377686047,1754490646473,-1901.21,0.0003863,14]
[377686049,1754490646483,-1590.77,0.0003863,14]
[377686051,1754490646493,-400.0,0.0003863,14]
[377686053,1754490646502,-400.0,0.0003863,14]
[377686055,1754490646512,-465.95,0.0003863,14]
[377686057,1754490646522,-1306.21,0.0003863,14]
[377686059,1754490646532,-400.0,0.0003863,14]
[377686060,1754490646542,-606.23,0.0003863,14]
[377686061,1754490646552,-161.14815636,0.0003863,14]
[377686062,1754490646564,-400.0,0.0003863,14]
[377686063,1754490646574,-564.46,0.0003863,14]
[377686064,1754490646584,-743.78,0.0003863,14]
[377686065,1754490646595,-2900.13,0.0003863,14]
[377686066,1754490646606,-400.0,0.0003863,14]
[377686067,1754490646615,-400.0,0.0003863,14]
[377686068,1754490646624,-605.07,0.0003863,14]
[377686069,1754490646635,-400.0,0.0003863,14]
[377686070,1754490646645,-1317.75,0.0003863,14]
[377686071,1754490646655,-1747.08,0.0003863,14]
[377686072,1754490646664,-990.39,0.0003863,14]
[377686073,1754490646674,-794.09,0.0003863,14]
[377686074,1754490646684,-400.0,0.0003863,14]
[377686075,1754490646696,-2202.49,0.0003863,14]
[377686076,1754490646710,-400.0,0.0003863,14]
[377686077,1754490646720,-400.0,0.0003863,14]
[377686078,1754490646730,-642.21,0.0003863,14]
[377686079,1754490646740,-478.74,0.0003863,14]
[377686080,1754490646749,-400.0,0.0003863,14]
[377686081,1754490646759,-2646.66,0.0003863,14]
[377686082,1754490646768,-1622.52,0.0003863,14]
[377686083,1754490646777,-400.0,0.0003863,14]
[377686084,1754490646787,-256.14893833,0.0003863,14]
[377686085,1754490646796,-2804.35,0.0003863,14]
[377686086,1754490646807,-400.0,0.0003863,14]
[377686087,1754490646817,-2944.06,0.0003863,14]
[377686088,1754490646826,-400.0,0.0003863,14]
[377686089,1754490646836,-708.9,0.0003863,14]
[377686090,1754490646845,-400.0,0.0003863,14]
[377686091,1754490646855,-400.0,0.0003863,14]
[377686092,1754490646864,-1488.61,0.0003863,14]
[377686093,1754490646874,-400.0,0.0003863,14]
[377686094,1754490646884,-400.0,0.0003863,14]
[377686095,1754490646894,-2747.22,0.0003863,14]
[377686096,1754490646903,-963.97,0.0003863,14]
[377686097,1754490646913,-706.1,0.0003863,14]
[377686098,1754490646921,-991.12,0.0003863,14]
[377686099,1754490646931,-400.0,0.0003863,14]
[377686100,1754490646941,-2304.45,0.0003863,14]
[377686101,1754490646950,-400.0,0.0003863,14]
[377686102,1754490646960,-1002.32,0.0003863,14]
[377686103,1754490646969,-1732.35,0.0003863,14]
[377686104,1754490646979,-1353.59,0.0003863,14]
[377686105,1754490646990,-400.0,0.0003863,14]
[377686106,1754490646999,-215.08117092,0.0003863,14]
[377686107,1754490647009,-1028.15,0.0003863,14]
[377686108,1754490647018,-671.08,0.0003863,14]
[377686109,1754490647028,-400.0,0.0003863,14]
[377686110,1754490647038,-477.1,0.0003863,14]
[377686111,1754490647048,-1404.23,0.0003863,14]
[377686112,1754490647060,-1028.06,0.0003863,14]
[377686113,1754490647070,-400.0,0.0003863,14]
[377686114,1754490647472,-530.61,0.0003863,14]
[377686115,1754490647482,-400.0,0.0003863,14]
[377686116,1754490647492,-1645.22,0.0003863,14]
[377686117,1754490647502,-400.0,0.0003863,14]
[377686118,1754490647511,-742.14,0.0003863,14]
[377686119,1754490647522,-400.0,0.0003863,14]
[377686120,1754490647531,-1355.01,0.0003863,14]
[377686121,1754490647539,-400.0,0.0003863,14]
[377686122,1754490647548,-400.0,0.0003863,14]
[377686123,1754490647559,-300.0,0.0003863,14]
[377686124,1754490647569,-400.0,0.0003863,14]
[377686125,1754490647578,-400.0,0.0003863,14]
[377686126,1754490647588,-400.0,0.0003863,14]
[377686127,1754490647599,-2822.93,0.0003863,14]
[377686128,1754490647609,-1163.44,0.0003863,14]
[377686129,1754490647618,-400.0,0.0003863,14]
[377686130,1754490647628,-400.0,0.0003863,14]
[377686131,1754490647638,-873.76,0.0003863,14]
[377686132,1754490647648,-773.44,0.0003863,14]
[377686133,1754490647657,-789.4,0.0003863,14]
[377686134,1754490647667,-2003.76,0.0003863,14]
[377686135,1754490647677,-400.0,0.0003863,14]
[377686136,1754490647687,-400.0,0.0003863,14]
[377686137,1754490647696,-400.0,0.0003863,14]
[377686138,1754490647706,-1041.66,0.0003863,14]
[377686139,1754490647716,-400.0,0.0003863,14]
[377686140,1754490647726,-400.0,0.0003863,14]
[377686141,1754490647735,-2815.34,0.0003863,14]
[377686142,1754490647745,-2310.95,0.0003863,14]
[377686143,1754490647755,-766.25,0.0003863,14]
[377686144,1754490647764,-1810.12,0.0003863,14]
[377686145,1754490647774,-400.0,0.0003863,14]
[377686146,1754490647784,-2322.77,0.0003863,14]
[377686147,1754490647794,-400.0,0.0003863,14]
[377686148,1754490647804,-227.60329454,0.0003863,14]
[377686149,1754490647815,-400.0,0.0003863,14]
[377686150,1754490647825,-2065.84,0.0003863,14]
[377686151,1754490647834,-871.32,0.0003863,14]
[377686152,1754490647844,-1938.44,0.0003863,14]
[377686153,1754490647854,-2005.39,0.0003863,14]
[377686154,1754490647864,-401.45450262,0.0003863,2]
[377686155,1754490647874,-1731.77,0.0003863,14]
[377686156,1754490647884,-419.66480923,0.0003863,14]
[377686157,1754490647893,-400.0,0.0003863,14]
[377686158,1754490647902,-400.0,0.0003863,14]
[377686159,1754490647912,-400.0,0.0003863,14]
[377686160,1754490647922,-754.83,0.0003863,14]
[377686161,1754490647932,-400.0,0.0003863,14]
[377686162,1754490647941,-550.61,0.0003863,14]
[377686163,1754490647951,-500.08306911,0.0003863,14]
[377686164,1754490647960,-400.0,0.0003863,14]
[377686165,1754490647970,-400.0,0.0003863,14]
[377686166,1754490647980,-400.0,0.0003863,14]
[377686167,1754490647990,-1134.3,0.0003863,14]
[377686168,1754490648000,-400.0,0.0003863,14]
[377686169,1754490648010,-400.0,0.0003863,14]
[377686170,1754490648020,-400.0,0.0003863,14]
[377686171,1754490648029,-400.0,0.0003863,14]
[377686172,1754490648039,-400.0,0.0003863,14]
[377686173,1754490648049,-1681.5,0.0003863,14]
[377686174,1754490648062,-454.78,0.0003863,14]
[377686175,1754490648072,-400.0,0.0003863,14]
[377686176,1754490648082,-1730.88,0.0003863,14]
[377686177,1754490648092,-400.0,0.0003863,14]
[377686178,1754490648102,-1749.32,0.0003863,14]
[377686179,1754490648112,-425.67,0.0003863,14]
[377686180,1754490648122,-938.07,0.0003863,14]
[377686181,1754490648132,-1080.87,0.0003863,14]
[377686182,1754490648142,-433.62,0.0003863,14]
[377686183,1754490648151,-559.12,0.0003863,14]
[377686184,1754490648161,-782.13,0.0003863,14]
[377686185,1754490648171,-400.0,0.0003863,14]
[377686186,1754490648180,-400.0,0.0003863,14]
[377686187,1754490648192,-563.54,0.0003863,14]
[377686188,1754490648201,-952.78,0.0003863,14]
[377686189,1754490648211,-400.7,0.0003863,14]
[377686190,1754490648221,-400.0,0.0003863,14]
[377686191,1754490648231,-400.0,0.0003863,14]
[377686192,1754490648241,-400.0,0.0003863,14]
[377686193,1754490648251,-400.0,0.0003863,14]
[377686194,1754490648260,-487.54,0.0003863,14]
[377686195,1754490648270,-189.14133231,0.0003863,14]
[377686196,1754490648280,-1637.3,0.0003863,14]
[377686197,1754490648291,-562.24,0.0003863,14]
[377686198,1754490648301,-400.0,0.0003863,14]
[377686199,1754490648315,-596.22,0.0003863,14]
[377686200,1754490648325,-1931.17,0.0003863,14]
[377686201,1754490648335,-464.23,0.0003863,14]
[377686202,1754490648345,-478.07,0.0003863,14]
[377686203,1754490648355,-400.0,0.0003863,14]
[377686204,1754490648365,-660.89,0.0003863,14]
[377686205,1754490648375,-400.0,0.0003863,14]
[377686206,1754490648385,-400.0,0.0003863,14]
[377686207,1754490648395,-553.95,0.0003863,14]
[377686208,1754490648404,-3053.88,0.0003863,14]
[377686209,1754490648414,-569.92,0.0003863,14]
[377686210,1754490648424,-400.0,0.0003863,14]
[377686211,1754490648433,-789.21,0.0003863,14]
[377686212,1754490648443,-400.0,0.0003863,14]
[377686213,1754490648454,-400.0,0.0003863,14]
[377686214,1754490648463,-1966.98,0.0003863,14]
[377686215,1754490648473,-1524.86,0.0003863,14]
[377686216,1754490648483,-400.0,0.0003863,14]
[377686217,1754490648493,-717.8,0.0003863,14]
[377686218,1754490648502,-1751.81,0.0003863,14]
[377686219,1754490648512,-400.0,0.0003863,14]
[377686220,1754490648521,-400.0,0.0003863,14]
[377686221,1754490648531,-400.0,0.0003863,14]
[377686222,1754490648540,-400.0,0.0003863,14]
[377686223,1754490648550,-576.23,0.0003863,14]
[377686224,1754490648563,-1578.99,0.0003863,14]
[377686225,1754490648572,-2193.26,0.0003863,14]
[377686226,1754490648582,-679.48,0.0003863,14]
[377686227,1754490648595,-1547.78,0.0003863,14]
[377686228,1754490648605,-400.0,0.0003863,14]
[377686229,1754490648615,-1246.41,0.0003863,14]
[377686230,1754490648624,-805.69,0.0003863,14]
[377686231,1754490648635,-1022.27,0.0003863,14]
[377686232,1754490648645,-423.31,0.0003863,14]
[377686233,1754490648654,-400.0,0.0003863,14]
[377686234,1754490648664,-400.0,0.0003863,14]
[377686235,1754490648675,-400.0,0.0003863,14]
[377686236,1754490648684,-511.59,0.0003863,14]
[377686237,1754490648694,-400.0,0.0003863,14]
[377686238,1754490648704,-407.11,0.0003863,14]
[377686239,1754490648714,-881.59,0.0003863,14]
[377686240,1754490648724,-400.0,0.0003863,14]
[377686241,1754490648734,-487.8371041,0.0003863,14]
[377686242,1754490648745,-400.0,0.0003863,14]
[377686243,1754490648754,-949.57,0.0003863,14]
[377686244,1754490648764,-400.0,0.0003863,14]
[377686245,1754490648774,-400.0,0.0003863,14]
[377686246,1754490648783,-400.0,0.0003863,14]
[377686247,1754490648793,-693.45,0.0003863,14]
[377686248,1754490648803,-1090.08,0.0003863,14]
[377686249,1754490648815,-1028.4,0.0003863,14]
[377686250,1754490648825,-1977.84,0.0003863,14]
[377686251,1754490648834,-400.0,0.0003863,14]
[377686252,1754490648844,-400.0,0.0003863,14]
[377686253,1754490648855,-400.0,0.0003863,14]
[377686254,1754490648864,-400.0,0.0003863,14]
[377686255,1754490648875,-1969.13,0.0003863,14]
[377686256,1754490648885,-400.0,0.0003863,14]
[377686257,1754490648895,-400.0,0.0003863,14]
[377686258,1754490648903,-400.0,0.0003863,14]
[377686259,1754490648913,-400.0,0.0003863,14]
[377686260,1754490648922,-400.0,0.0003863,14]
[377686261,1754490648932,-400.0,0.0003863,14]
[377686262,1754490648942,-973.67,0.0003863,14]
[377686263,1754490648952,-400.52984215,0.0003863,14]
[377686264,1754490648962,-742.05,0.0003863,14]
[377686265,1754490648971,-400.0,0.0003863,14]
[377686266,1754490648981,-400.0,0.0003863,14]
[377686267,1754490648991,-400.0,0.0003863,14]
[377686268,1754490649000,-2129.13,0.0003863,14]
[377686269,1754490649010,-400.0,0.0003863,14]
[377686270,1754490649020,-2095.85,0.0003863,14]
[377686271,1754490649030,-1700.16,0.0003863,14]
[377686272,1754490649040,-332.22,0.0003863,14]
[377686273,1754490649050,-741.31,0.0003863,14]
[377686274,1754490649061,-1974.35,0.0003863,14]
[377686275,1754490649071,-400.0,0.0003863,14]
[377686276,1754490649080,-942.37,0.0003863,14]
[377686277,1754490649091,-486.69,0.0003863,14]
[377686278,1754490649100,-400.0,0.0003863,14]
[377686279,1754490649110,-1162.73,0.0003863,14]
[377686280,1754490649120,-400.0,0.0003863,14]
[377686281,1754490649129,-966.02,0.0003863,14]
[377686282,1754490649139,-400.0,0.0003863,14]
[377686283,1754490649149,-2074.23,0.0003863,14]
[377686284,1754490649158,-400.0,0.0003863,14]
[377686285,1754490649168,-400.0,0.0003863,14]
[377686286,1754490649177,-400.0,0.0003863,14]
[377686287,1754490649187,-400.0,0.0003863,14]
[377686288,1754490649198,-572.3,0.0003863,14]
[377686289,1754490649208,-591.92,0.0003863,14]
[377686290,1754490649218,-1994.05,0.0003863,14]
[377686291,1754490649228,-446.72082124,0.0003863,14]
[377686292,1754490649238,-1338.07,0.0003863,14]
[377686293,1754490649247,-3575.82,0.0003863,14]
[377686294,1754490649257,-400.0,0.0003863,14]
[377686295,1754490649267,-400.0,0.0003863,14]
[377686296,1754490649279,-400.0,0.0003863,14]
[377686297,1754490649290,-1520.4,0.0003863,14]
[377686298,1754490649303,-1775.54,0.0003863,14]
[377686299,1754490649315,-400.0,0.0003863,14]
[377686300,1754490649325,-2206.42,0.0003863,14]
[377686301,1754490649334,-470.1,0.0003863,14]
[377686302,1754490649343,-400.0,0.0003863,14]
[377686303,1754490649351,-400.0,0.0003863,14]
[377686304,1754490649361,-1249.04,0.0003863,14]
[377686305,1754490649370,-2169.26,0.0003863,14]
[377686306,1754490649379,-400.0,0.0003863,14]
[377686307,1754490649390,-400.0,0.0003863,14]
[377686308,1754490649400,-845.1,0.0003863,14]
[377686309,1754490649409,-2721.87,0.0003863,14]
[377686310,1754490649419,-400.0,0.0003863,14]
[377686311,1754490649429,-400.0,0.0003863,14]
[377686312,1754490649440,-400.0,0.0003863,14]
[377686313,1754490649450,-400.0,0.0003863,14]
[377686314,1754490649460,-400.0,0.0003863,14]
[377686315,1754490649469,-1533.05,0.0003863,14]
[377686316,1754490649479,-2553.63,0.0003863,14]
[377686317,1754490649488,-521.64804328,0.0003863,14]
[377686318,1754490649498,-2640.93,0.0003863,14]
[377686319,1754490649508,-400.0,0.0003863,14]
[377686320,1754490649517,-591.12,0.0003863,14]
[377686321,1754490649527,-400.0,0.0003863,14]
[377686322,1754490649536,-1230.81,0.0003863,14]
[377686323,1754490649547,-183.003833,0.0003863,14]
[377686324,1754490649557,-1651.82,0.0003863,14]
[377686325,1754490649567,-400.0,0.0003863,14]
[377686326,1754490649577,-400.0,0.0003863,14]
[377686327,1754490649590,-442.4,0.0003863,14]
[377686328,1754490649604,-400.0,0.0003863,14]
[377686329,1754490649614,-1806.71,0.0003863,14]
[377686330,1754490649624,-400.0,0.0003863,14]
[377686331,1754490649634,-2253.45,0.0003863,14]
[377686332,1754490649643,-975.358954,0.0003863,14]
[377686333,1754490649652,-1959.46,0.0003863,14]
[377686334,1754490649663,-1535.83,0.0003863,14]
[377686335,1754490649672,-3482.75,0.0003863,2]
[377686336,1754490649681,-400.0,0.0003863,14]
[377686337,1754490649691,-686.55,0.0003863,14]
[377686338,1754490649700,-2666.44,0.0003863,14]
[377686339,1754490649710,-400.0,0.0003863,14]
[377686340,1754490649720,-475.67,0.0003863,14]
[377686341,1754490649730,-400.0,0.0003863,14]
[377686342,1754490649739,-690.05,0.0003863,14]
[377686343,1754490649749,-2283.13,0.0003863,14]
[377686344,1754490649759,-400.0,0.0003863,14]
[377686345,1754490649768,-827.15,0.0003863,14]
[377686346,1754490649778,-434.18,0.0003863,14]
[377686347,1754490649787,-400.0,0.0003863,14]
[377686348,1754490649796,-400.0,0.0003863,14]